Cogmind - Beta 13 @@@ ROGUE MODE // 2024.07.08 @ 23:45:54 Player: Selene Result: Destroyed by H7-HEJ(R) with Subdweller Shrapnel Launcher Performance ------------- Evolutions (0) 0 Regions Visited (2) 400 Robots Destroyed (28) 140 Value Destroyed (472) 472 Prototype IDs (13) 260 Alien Tech Used (0) 0 Bonus (0) 0 TOTAL SCORE: 1272 Bonus ------- None Cogmind --------- Core Integrity 0/250 Matter 10/300 Energy 68/100 System Corruption 3% Temperature Cool (0) Movement Core (550) Ox10 Location -10/Subcaves Parts ------- > --- POWER (1) -------- Subdweller Power Source > --- PROPULSION (2) --- Subdweller Monowheel > --- UTILITY (2) ------ Large Storage Unit Makeshift Light Armor Plating > --- WEAPON (2) ------- Subdweller Laser > --- INVENTORY (15) --- Ion Engine Light Ion Engine Subdweller Power Source Disposable Heat Sink Disposable Heat Sink Structural Scanner Improved Terrain Scanner Seismic Detector Light Armor Plating Light Armor Plating Light Armor Plating Power Bank Small Laser Small Laser Datajack Peak State ------------ > --- POWER ------------ Subdweller Power Source > --- PROPULSION ------- Light Treads Light Treads > --- UTILITY ---------- Large Storage Unit Gun Armor > --- WEAPON ----------- Small Laser Small Laser Particle Gun Assault Rifle > --- INVENTORY -------- Ion Engine Light Ion Engine Subdweller Power Source Disposable Heat Sink Disposable Heat Sink Structural Scanner Improved Terrain Scanner Seismic Detector Light Armor Plating Light Armor Plating Light Armor Plating Grenade Launcher Grenade Launcher Datajack Scrap Shield Fragment [Rating: 21] Favorites ----------- Power Ion Engine Engine Ion Engine Propulsion Light Treads Treads Light Treads Wheel Subdweller Monowheel Utility Large Storage Unit Device Seismic Detector Storage Large Storage Unit Protection Light Armor Plating Weapon Particle Gun Energy Gun Particle Gun Ballistic Gun Assault Rifle Launcher Grenade Launcher Build | -11 -10 -10 ------- Run | Yrd Mat Sub Slots Evolved . | . . . Power . | . . . Propulsion . | . . . Utility . | . . . Weapon . | . . . Parts Attached 51 | 6 20 25 Power 2 | 1 . 1 Engine 2 | 1 . 1 Core . | . . . Reactor . | . . . Propulsion 9 | 2 4 3 Treads 7 | 2 3 2 Leg . | . . . Wheel 2 | . 1 1 Hover . | . . . Flight . | . . . Utility 18 | 1 8 9 Device 5 | . 2 3 Storage 5 | 1 4 . Processor . | . . . Hackware . | . . . Protection 8 | . 2 6 Artifact . | . . . Weapon 22 | 2 8 12 Energy Gun 7 | . 2 5 Energy Cannon . | . . . Ballistic Gun 7 | 2 3 2 Ballistic Cannon . | . . . Launcher 8 | . 3 5 Special Weapon . | . . . Impact Weapon . | . . . Slashing Weapon . | . . . Piercing Weapon . | . . . Special Melee Weapon . | . . . Unidentified Prototypes 1 | . . 1 Parts Lost 6 | . . 6 Power . | . . . Propulsion 3 | . . 3 Utility . | . . . Weapon 3 | . . 3 Highest Loss Streak 2 | . . 2 To Critical Strikes . | . . . Average Slot Usage (%) 99 | . 99 99 Engine 13 | . 14 13 Treads 25 | . 26 23 Wheel 2 | . 1 4 Device 4 | . 4 3 Storage 13 | . 14 13 Protection 9 | . 8 9 Energy Gun 15 | . 15 14 Ballistic Gun 8 | . 12 4 Launcher 4 | . . 9 Naked Turns . | . . . Heaviest Build 38 | 13 32 38 Greatest Support 40 | 40 40 40 Greatest Overweight (x) 1 | . 1 1 Average Overweight (x) . | . . . Largest Inventory Capacity 30 | 8 30 15 Average Capacity 12 | 7 11 15 Most Carried 15 | 6 15 15 Average Carried 11 | 3 10 14 Final Capacity 15 | 8 15 15 Final Carried 15 | 6 14 15 Class Distribution -------------------- 95% | Mutant 4% | Gunner Dominant Class ---------------- Mutant | -10/Materials Mutant | -10/Subcaves Resources | -11 -10 -10 ----------- Run | Yrd Mat Sub Matter Collected 908 | 308 381 219 Remotely . | . . . Salvage Created 741 | 117 379 245 Parts 58 | 9 38 11 Haulers Intercepted 2 | . 2 . Recyclers Shooed 1 | . 1 . Parts Field Recycled . | . . . Retrieved Matter . | . . . Parts Self-Destructed 14 | . . 14 Prevented . | . . . Kills | -11 -10 -10 ------- Run | Yrd Mat Sub Combat Hostiles Destroyed 18 | . 10 8 Guns 8 | . 7 1 AOE 10 | . 3 7 Classes Destroyed 10 | 3 5 2 Worker 2 | 1 1 . Builder 1 | . 1 . Tunneler 2 | 2 . . Hauler 2 | . 2 . Recycler 1 | 1 . . Watcher 2 | . 2 . Swarmer 10 | . 6 4 Grunt 4 | . 4 . Cobbler 1 | . . 1 Subdweller 4 | . . 4 Best Kill Streak 4 | 2 3 4 Combat Bots Only 4 | . 3 4 Max Kills in Single Turn 4 | 1 3 4 Gunslinging . | . . . Exploded 4 | . 3 4 Melee . | . . . Uniques/NPCs Destroyed . | . . . Combat | -11 -10 -10 -------- Run | Yrd Mat Sub Hostile Shots Fired 130 | . 31 99 Missed 44 | . 6 38 Damage Taken 1541 | . 361 1180 Core 258 | . 100 158 Absorbed by Shields . | . . . Regen/Repaired (Parts) 55 | . 55 . Core Remaining (%) 100 | 100 . . Volleys Fired 114 | 12 66 36 Largest 2 | 2 2 2 Hottest 105 | 40 105 105 Shots Fired 188 | 24 118 46 Gun 162 | 24 115 23 Cannon . | . . . Launcher 26 | . 3 23 Special . | . . . Kinetic 95 | 24 70 1 Thermal 67 | . 45 22 Explosive 26 | . 3 23 Electromagnetic . | . . . Robot Hit Streak 16 | 7 16 4 Robot Miss Streak 4 | 3 3 4 Penetration Max . | . . . Secondary Targets . | . . . Shots Hit Robots 115 | 17 79 19 Core Hits 49 | 7 26 16 Critical Kills . | . . . Critical Parts Destroyed . | . . . Critical Strikes . | . . . Melee Attacks . | . . . Impact . | . . . Slashing . | . . . Piercing . | . . . Sneak Attacks . | . . . Combat Hostiles . | . . . Follow-up Attacks . | . . . Damage Inflicted 2021 | 169 1084 768 Guns 1241 | 169 882 190 Cannons . | . . . Explosions 780 | . 202 578 Melee . | . . . Ramming . | . . . Kinetic 708 | 169 523 16 Thermal 533 | . 359 174 Explosive 780 | . 202 578 Electromagnetic . | . . . Impact . | . . . Slashing . | . . . Piercing . | . . . Highest Corruption 3 | . 3 3 Average Corruption 2 | . 1 3 Corruption Purged . | . . . Corruption Blocked . | . . . Effects 36 | . 12 24 Message Errors 9 | . 3 6 Matter Fused 7 | . 2 5 Heat Flow Errors 3 | . 1 2 Energy Discharges 8 | . 2 6 Parts Rejected 1 | . . 1 Data Loss (minor) 5 | . 3 2 Data Loss (major) 1 | . . 1 Misfires 2 | . 1 1 Overload Shots . | . . . Overflow Damage 41 | . . 41 Projectiles . | . . . Explosions 41 | . . 41 Melee . | . . . Knockbacks . | . . . Impact . | . . . Kinetic . | . . . Secondary . | . . . Self-Inflicted Damage 145 | . 15 130 Shots 7 | . 1 6 Rammed . | . . . Targets Rammed . | . . . Kicked . | . . . Crushed . | . . . Highest Temperature 278 | . 241 278 Average Temperature 65 | . 49 158 Received Heat Transfer 593 | . 135 458 Effects 1 | . . 1 Energy Bleed 1 | . . 1 Siege Activations . | . . . Robots Corrupted . | . . . Combat Hostiles . | . . . Parts Fried . | . . . Impact Corruptions . | . . . Robots Melted . | . . . Combat Hostiles . | . . . Parts Melted . | . . . Heat Transferred 1240 | . 855 385 Parts Sabotaged . | . . . Parts Stolen . | . . . Parts Stripped . | . . . Power Chain Reactions . | . . . Alert | -11 -10 -10 ------- Run | Yrd Mat Sub Peak Influence 257 | 20 257 . Initial 13 | . 13 . Average 112 | 6 123 . Maximum Alert Level 1 | . 1 . Low Security (%) 88 | 100 87 . Level 1 11 | . 12 . Level 2 . | . . . Level 3 . | . . . Level 4 . | . . . Level 5 . | . . . High Security . | . . . Max Security . | . . . Squads Dispatched 2 | . 2 . Investigation 1 | . 1 . Extermination . | . . . Reinforcement 1 | . 1 . Assault . | . . . Garrison . | . . . Intercept . | . . . Searches Triggered . | . . . Construction Impeded . | . . . Haulers Reinforced . | . . . Active Scanning Responses . | . . . Cargo Convoy Interrupts . | . . . Stealth | -11 -10 -10 --------- Run | Yrd Mat Sub Distress Signals 1 | . 1 . Communications Jammed . | . . . Distress Signals . | . . . Times Spotted 46 | . 22 24 Peak Tracking Total 6 | . 4 6 Tactical Retreats 8 | . 3 5 Traps | -11 -10 -10 ------- Run | Yrd Mat Sub Traps Triggered 3 | . 1 2 Indirectly . | . . . Trap Hack Attempts . | . . . Triggered . | . . . Disarmed . | . . . Reprogrammed . | . . . Reused . | . . . Traps Extracted . | . . . Installed . | . . . Triggered . | . . . Machines | -11 -10 -10 ---------- Run | Yrd Mat Sub Machines Disabled 3 | . 1 2 Max in Single Turn 1 | . 1 1 Machines Repaired . | . . . Machines Dismantled . | . . . Machines Sabotaged . | . . . Overloaded Fab Kills . | . . . Hacking | -11 -10 -10 --------- Run | Yrd Mat Sub Machines Accessed 10 | . 9 1 Terminals 6 | . 6 . Fabricators . | . . . Repair Stations 1 | . 1 . Recycling Units 2 | . 2 . Scanalyzers . | . . . Garrison Access . | . . . Total Hacks 37 | . 28 9 Successful 24 | . 15 9 Failed 13 | . 13 . Catastrophic 1 | . 1 . Database Lockouts . | . . . Manual 9 | . 9 . Terminals 18 | . 18 . Fabricators . | . . . Repair Stations 4 | . 4 . Recycling Units 6 | . 6 . Scanalyzers . | . . . Garrison Access . | . . . Terminal Hacks 17 | . 8 9 Record 8 | . . 8 Robot Analysis 2 | . 2 . Prototype ID Bank 2 | . 2 . Emergency Access Points 1 | . 1 . Locate Traps 2 | . 2 . Registered Components 1 | . 1 . Derelict Proto ID Bank 1 | . . 1 Fabricator Hacks . | . . . Repair Station Hacks 2 | . 2 . Scan Component 1 | . 1 . Repair 1 | . 1 . Recycling Unit Hacks 1 | . 1 . Retrieve Components 1 | . 1 . Scanalyzer . | . . . Garrison Access Hacks . | . . . Unauthorized Hacks 4 | . 4 . Terminals 2 | . 2 . Botnet 2 | . 2 . Fabricators . | . . . Repair Stations . | . . . Recycling Units 2 | . 2 . Reject 2 | . 2 . Scanalyzers . | . . . Garrison Access . | . . . Data Cores Recovered . | . . . Used . | . . . Hacking Detections 8 | . 8 . Full Trace Events 2 | . 2 . Feedback Events 1 | . 1 . Corruption 1 | . 1 . Feedback Blocked . | . . . Robot Schematics Acquired . | . . . Robots Built . | . . . Authchips . | . . . Time . | . . . Total Robot Build Rating . | . . . Part Schematics Acquired . | . . . Parts Built . | . . . Authchips . | . . . Time . | . . . Total Part Build Rating . | . . . Parts Repaired 1 | . 1 . Time 26 | . 26 . Parts Recycled . | . . . Recycled Matter . | . . . Retrieved Matter . | . . . Retrieved Components 6 | . 6 . Parts Scanalyzed . | . . . Part Schematics Acquired . | . . . Parts Damaged . | . . . Bothacking | -11 -10 -10 ------------ Run | Yrd Mat Sub Used RIF Installer . | . . . Robots Hacked . | . . . Non-combat . | . . . Combat . | . . . Robot Hacks Applied . | . . . Relay Couplers Released . | . . . Fabnet Peak Effective % . | . . . Robots Rewired . | . . . Allies Hacked . | . . . Hacks Repelled . | . . . Allies | -11 -10 -10 -------- Run | Yrd Mat Sub Total Allies . | . . . Largest Group . | . . . Highest-Rated Group . | . . . Highest-Rated Ally . | . . . Total Orders . | . . . Ally Attacks . | . . . Total Damage . | . . . Kills . | . . . Allies Corrupted . | . . . Allies Melted . | . . . Intel | -11 -10 -10 ------- Run | Yrd Mat Sub Robot Analysis Total 2 | . 2 . Derelict Logs Recovered 1 | . . 1 Drone Launches . | . . . Drone Recoveries . | . . . Exploration | -11 -10 -10 ------------- Run | Yrd Mat Sub Turns Passed 3393 | 177 1700 1516 Spaces Moved 1768 | 83 874 811 Core 6 | 6 . . Treads 1613 | 77 796 740 Legs . | . . . Wheels 149 | . 78 71 Hover . | . . . Flight . | . . . Fastest Speed 50 | 50 115 120 Average Speed 162 | 152 155 170 Slowest Speed 240 | 160 160 240 Overloaded Moves . | . . . Propulsion Burnouts . | . . . Robots Hopped . | . . . Cave-ins Triggered . | . . . Exploration Rate (%) 50 | 6 98 46 Regions Visited 2 Branch Regions 1 Pre-discovered Areas . | . . . Known Exits Taken . | . . . Unknown Exits Taken 2 | 1 1 . Scrap Searched . | . . . Spaces Dug 37 | . . 37 Terrain Destroyed 134 | . 16 118 Melee . | . . . Projectile . | . . . AOE 134 | . 16 118 Terrain Rammed . | . . . Walls Destroyed . | . . . Machines Disabled . | . . . Actions | -11 -10 -10 --------- Run | Yrd Mat Sub Total 2097 | 109 1103 885 Wait 106 | 3 101 2 Move 1766 | 82 873 811 Hop . | . . . Pick Up 37 | 6 25 6 Fast Attach 15 | 6 5 4 Attach 5 | . 1 4 Detach 1 | . . 1 Swap 31 | . 14 17 Drop 22 | . 18 4 Fire 114 | 12 66 36 Melee . | . . . Ram . | . . . Kick . | . . . Crush . | . . . Escape Stasis . | . . . Rewire . | . . . Trap . | . . . Miscellaneous . | . . . Route ------- -11/Scrapyard -10/Materials (discovered 5 exits: [*Mat x3] / [*Min] / *Sub) -10/Subcaves (discovered 1 exit: [*Rec]) History --------- Turn | Location | Event 37 | -11/Scrapyard | Discovered new exit (range 15) 178 | -11/Scrapyard | Entered Materials 318 | -10/Materials | Build established: Mutant 708 | -10/Materials | Discovered new exit (range 8) 1137 | -10/Materials | Discovered new exit (range 16) 1355 | -10/Materials | Discovered new exit (range 16) 1453 | -10/Materials | Repaired Lgt. Armor Plating 1568 | -10/Materials | Discovered new exit (range 16) 1865 | -10/Materials | Discovered new exit (range 11) 1878 | -10/Materials | Entered Subcaves 2206 | -10/Subcaves | Learned location of 1 exit from Materials 2245 | -10/Subcaves | A swath of the cavern ceiling suddenly collapsed 2365 | -10/Subcaves | A Subdweller sparked back to life 2365 | -10/Subcaves | A Subdweller sparked back to life 2365 | -10/Subcaves | A Subdweller sparked back to life 2367 | -10/Subcaves | Core integrity fell below 50% 2408 | -10/Subcaves | Found Prototype Protection 2408 | -10/Subcaves | Identified Gun Armor 2410 | -10/Subcaves | Attached Gun Armor, gained temporary slots: Weapon x2 2613 | -10/Subcaves | Discovered new exit (range 10) 2871 | -10/Subcaves | Shifting Twisted Machinery released Mak. Light Armor Plating 2938 | -10/Subcaves | Core integrity fell below 20% 3014 | -10/Subcaves | Shifting Twisted Machinery released Mak. Hacking Suite 3096 | -10/Subcaves | Visited 4L-MR0's lab 3134 | -10/Subcaves | Found Power Bank 3394 | -10/Subcaves | Destroyed by H7-HEJ(R) with Subdweller Shrapnel Launcher Last Messages --------------- them are even willing to come in here given their fear of my usual visitors." 03121_ 1ULEACL G4SCD7/L5N9FPRDN,XUL J0F 03124_ Testing Chamber breached. 03128_ 4L-MR0 mumbles: "Who knows where that last prototype ended up, probably tossed aside somewhere as if it were useless junk..." 03133_ Dropped Scrap Shield Fragment. 03134_ Acquired Power Bank. 03145_ System corrupted: Matter fused (-9). 03180_ System corrupted: Component data lost. 03195_ System corrupted: Energy discharge (-36). 03271_ Triggered Piercing Trap. 03271_ Spikes shoot up from the floor. 03271_ Critical hit (Impale). 03316_ System corrupted: Matter fused (-5). 03384_ 5C-2W9(R) emerges from the Twisted Machinery. 03389_ Grenade Launcher destroyed. 03394_ Lgt. Treads destroyed. Map ----- +----------------------------------------------------+ | | | | | | | | | | | | | | | ?????????????????????????????????????????????????? | | ?????????????????????????????????????????????????? | | ?????????????????????????????????????????????????? | | ?????????????????????????????????????????????????? | | ?????????????????????????????????????????????????? | | ?????????????????????????????????????????????????? | | ?????????????????????????????????????????????????? | | ?????????????????????????????????????????????????? | | ?????????????????????????????????????????????????? | | ?????????????????????????????????????????????????? | | ?????????????????????????????????????????????????? | | ?????????????????????????????????????????????????? | | ?????????????????????????????????????????????????? | | ?????????????????????????????????????????????????? | | ????????????########?#######?????????????????????? | | ??????####### #?#;;;;;###?????#?????????????? | | ??????# ###; ; ;;;### R##""??????????? | | #?????# ^ R " ?????????? | | ????# @ #??????????????? | | ###### ##### ##; ;;;;;; #?????????????? | | #### #???######; ## #???????????? | | ## #????????#######???# ##???????????? | | ?????# #??????????????????????#????????????? | | ????## #???????????????????????????????????? | | ????# ##???????????????????????????????????? | | ????# #????????????????????????????????????? | | ????# #????????????????????????????????????? | | ???## #####????????????????????????????????????? | | ???# ##???????????????????????????????????????? | | ???# ####????????????????????????????????????? | | ???#^ #????????????????????????????????????? | | ???# ##???????????????????????????????????? | | ???# #???????????????????????????????????? | | ???## #???????????????????????????????????? | | ????### #???????????????????????????????????? | | ?????## #???????????????????????????????????? | | ???### #???????????????????????????????????? | | ??## ##??????????????????????????????????? | | ??# ###????????????????????????????????? | | ??# #??????#?????????????????????????? | | #?# #????? #?????????????????????????? | | ######## ###?? #??????????????????????????? | | ###????## #### #???????????????????????????? | +----------------------------------------------------+ Best States ------------- Heat Dissipation 25 Energy Generation 15 Energy Capacity 250 Matter Stores 300 Matter Capacity 300 Sight Range 16 Terrain Scan Density 10 Armor Coverage 150 Evasion (%) 40 Recoil Reduction 2 Item Schematics ----------------- None Robot Schematics ------------------ None Fabricated ------------ Nothing Alien Tech Used ----------------- None Achievements -------------- None Challenges ------------ None Game ------ Seed SingularityRelayMonowheel Manual? 0 Play Time 00:28:22 Cumulative 96.5 hours Start 2024.07.08 @ 23:18:25 End 2024.07.08 @ 23:45:54 Sessions 1 Manual Loads 0 Difficulty Rogue Special Mode None Game No. 56 Rogue 53 Adventurer 3 Explorer 0 Win Type - Total 2 Types 2/0/0/0/0/0/0/0/0 Lore% 51 Gallery% 55 Achievement% 46 Wizard Run 0 Options --------- Layout 1 ASCII 0 Keyboard 1 Movement Vi Keybinds 1 Fullscreen 2 Font 24/Smallcaps Map View 50x35 Zoom Use 0% Tactical HUD 1 Map Filters NONE Filters NONE Steam 1 RUN: 473bb025-899b-47bf-b7c0-ee760d13a15d